bitfinex-derivatives/quotes_ETHF0:USTF0_20250528
["timestamp","ask_amount","ask_price","bid_price","bid_amount"]
[1748471015659,2.0634,2644.7,2644.6,2.69394908]
[1748471018356,1.3074,2644.7,2644.6,2.69394908]
[1748471018750,3.2078,2644.8,2644.7,0.756]
[1748471018959,3.2078,2644.8,2644.7,2.0634]
[1748471019257,4.48296,2644.9,2644.8,0.75598]
[1748471019463,3.727,2644.9,2644.8,2.06338]
[1748471020562,6.9348,2644.9,2644.8,2.06338]
[1748471020766,4.48295,2644.9,2644.8,2.06338]
[1748471021764,3.727,2644.9,2644.8,2.06338]
[1748471022270,4.48295,2644.9,2644.8,2.06338]
[1748471024765,7.69075,2644.9,2644.8,2.06338]
[1748471027767,3.9637,2645.2,2645.1,0.75589]
[1748471028670,3.9637,2645.2,2645.1,2.04579]
[1748471033563,3.2078,2645.2,2645.1,2.04579]
[1748471034366,3.96366,2645.2,2645.1,2.04579]
[1748471042672,3.2078,2645.2,2645.1,2.04579]
[1748471042884,3.721,2645.5,2645.4,0.7558]
[1748471043585,3.721,2645.5,2645.4,2.0211]
[1748471043783,4.47678,2645.5,2645.4,2.0211]
[1748471044382,5.70678,2645.5,2645.4,2.0211]
[1748471044682,5.70678,2645.5,2645.2,1.88962]
[1748471044683,0.75583,2645.3,2645.2,0.75584]
[1748471044882,0.75591,2645.2,2645.1,0.75587]
[1748471045080,2.04531,2645.2,2645.1,0.75587]
[1748471046187,2.04531,2645.2,2645.1,0.83050908]
[1748471050888,1.2894,2645.2,2645.1,0.83050908]
[1748471052687,2.04526,2645.2,2645.1,0.83050908]
[1748471053584,2.04526,2645.2,2645.1,0.07463908]
[1748471054287,2.04526,2645.2,2645.1,0.83052908]
[1748471055394,2.04526,2645.2,2645.1,0.07463908]
[1748471055688,2.04526,2645.2,2645.1,0.83052908]
[1748471055889,2.04526,2645.2,2645.1,0.07463908]
[1748471057587,0.75609,2644.5,2644.4,0.75607]
[1748471057786,0.75609,2644.4,2644.3,0.00567086]
[1748471057986,8.89919,2644.4,2644.3,0.00567086]
[1748471058282,0.7562,2644.1,2644.0,0.75619]
[1748471060092,0.75615,2644.2,2644.1,0.75615]
[1748471060290,3.716,2644.3,2644.2,0.75615]
[1748471060690,4.47212,2644.3,2644.2,0.75615]
[1748471061205,5.73662,2644.3,2644.2,0.6533]
[1748471061494,0.75619,2644.1,2644.0,0.75618]
[1748471061996,2.02067,2644.2,2644.1,0.75618]
[1748471064889,0.75617,2644.2,2644.1,0.75618]
[1748471065497,0.75618,2644.1,2644.0,2.04109]
[1748471066199,0.75618,2644.1,2644.0,1.2849]
[1748471066587,0.75618,2644.1,2644.0,2.0411]
[1748471067496,0.75618,2644.1,2644.0,1.2849]
[1748471069599,0.75618,2644.1,2644.0,2.0411]
[1748471073498,1.253,2644.2,2644.0,2.0411]
[1748471073706,4.47216,2644.3,2644.2,0.75615]
[1748471073907,0.75615,2644.2,2644.1,2.09225]
[1748471078102,0.75618,2644.1,2644.0,0.07463908]
[1748471078309,2.04118,2644.1,2644.0,0.83083908]
[1748471079010,8.92755,2644.3,2644.0,0.83083908]
[1748471079011,0.75616,2644.2,2644.1,0.75618]
[1748471083210,0.75618,2644.1,2644.0,0.07463908]
[1748471084911,0.75618,2644.1,2644.0,0.83083908]
[1748471085110,0.75618,2644.1,2644.0,2.07003908]
[1748471102020,0.86957,2644.2,2644.1,0.75618]
[1748471102320,0.86957,2644.2,2644.1,2.07018]
[1748471104123,2.19727,2644.2,2644.1,2.07018]
[1748471104918,2.19727,2644.2,2644.1,1.314]
[1748471105116,0.7562,2644.0,2643.9,1.40953]
[1748471109725,0.7562,2644.0,2643.9,2.68283]
[1748471113130,0.7562,2644.0,2643.9,1.40953]
[1748471113330,0.7562,2644.0,2643.9,0.6533]
[1748471113522,0.75623,2643.9,2643.8,0.0037806]
[1748471113730,5.79293,2643.9,2643.8,0.0037806]
[1748471118123,5.79293,2643.9,2642.6,3.2078]
[1748471118124,0.75651,2643.1,2642.6,3.2078]
[1748471118327,4.4624,2643.4,2643.0,1.2944]
[1748471118529,3.706,2643.4,2643.3,0.7564]
[1748471118727,0.75638,2643.5,2643.4,0.75635]
[1748471119324,2.00268,2643.5,2643.4,0.75635]
[1748471120430,0.75638,2643.5,2643.4,0.75635]
[1748471121436,0.75638,2643.5,2643.4,1.38685]
[1748471123830,0.75638,2643.5,2643.4,1.38688]
[1748471128433,0.75638,2643.5,2643.3,1.2241]
[1748471128745,2.04258,2643.4,2643.3,1.9805]
[1748471129741,0.75638,2643.4,2643.3,1.9805]
[1748471131838,0.75646,2643.1,2643.0,1.36929]
[1748471132040,0.75646,2643.1,2643.0,0.6128]
[1748471132832,1.3265,2643.2,2643.1,0.75646]
[1748471133033,1.3265,2643.2,2643.0,0.6128]
[1748471133034,0.75644,2643.3,2643.2,0.7564]
[1748471135237,2.10194,2643.3,2643.2,0.7564]
[1748471136241,0.75643,2643.2,2643.1,1.99415]
[1748471137040,0.75646,2643.1,2643.0,0.68743908]
[1748471137340,1.97986,2643.1,2643.0,1.44392908]
[1748471137842,1.97986,2643.1,2643.0,2.05922908]
[1748471142547,5.18766,2643.1,2643.0,1.30273908]
[1748471143134,5.18766,2643.1,2643.0,1e-08]
[1748471143340,5.18766,2643.1,2642.5,0.6353]
[1748471143341,0.7566,2642.6,2642.5,0.6353]
[1748471143539,0.75672,2642.2,2642.1,1.285]
[1748471143750,7.67152,2642.2,2642.1,1.285]
[1748471143944,0.75681,2641.9,2641.8,0.75681]
[1748471144150,0.75681,2641.9,2641.8,1.39211]
[1748471144346,1.2288,2642.1,2641.6,0.6497]
[1748471144554,0.75697,2641.4,2640.8,1.89278]
[1748471144840,3.2078,2641.7,2641.1,1.89256]
[1748471145045,3.707,2641.8,2641.6,0.75689]
[1748471145244,3.707,2641.8,2641.7,2.5421]
[1748471145549,4.46383,2641.8,2641.7,2.5421]
[1748471145749,3.707,2641.8,2641.7,2.5421]
[1748471146246,4.46383,2641.8,2641.7,2.5421]
[1748471147042,5.59911,2641.8,2641.0,20.5368]
[1748471147245,0.75693,2641.5,2641.4,1.2554]
[1748471147643,1.3468,2641.7,2641.4,2.01235]
[1748471148047,0.75692,2641.5,2641.4,1.2554]
[1748471148545,0.75701,2641.2,2641.1,2.5882]
[1748471148751,0.75699,2641.3,2641.1,2.5882]
[1748471148956,0.75699,2641.3,2641.2,1.3015]
[1748471149450,1.249,2641.5,2641.4,0.07463908]
[1748471149649,2.00592,2641.5,2641.4,0.07463908]
[1748471151149,2.00592,2641.5,2641.4,1.37503908]
[1748471151349,2.00592,2641.5,2641.4,2.13198908]
[1748471151754,2.00592,2641.5,2641.4,1.37503908]
[1748471152460,2.00592,2641.5,2641.4,2.13198908]
[1748471152646,2.00592,2641.5,2641.4,1.37503908]
[1748471152849,2.00592,2641.5,2641.4,2.13198908]
[1748471153150,2.00592,2641.5,2641.4,1.37503908]
[1748471153557,2.00592,2641.5,2641.4,2.13198908]
[1748471154057,2.00592,2641.5,2641.4,1.37503908]
[1748471154257,3.96471,2641.6,2641.4,1.37503908]
[1748471154447,3.96471,2641.6,2641.5,0.75692]
[1748471155348,3.96471,2641.6,2641.5,1.40712]
[1748471156848,3.8175,2641.9,2641.5,0.6502]
[1748471157055,3.8175,2641.9,2641.6,1.9933]
[1748471157259,3.8175,2641.9,2641.8,0.75683]
[1748471157553,0.1135,2641.9,2641.8,0.75683]
[1748471158258,0.75683,2641.8,2641.7,1.314]
[1748471158445,0.75683,2641.8,2641.7,2.07086]
[1748471159251,2.14693,2641.9,2641.8,0.75683]
[1748471159553,2.14693,2641.9,2641.8,2.07083]
[1748471159950,2.14693,2641.9,2641.8,2.07905988]
[1748471160152,0.1135,2641.9,2641.8,2.07905988]
[1748471161757,0.87031,2641.9,2641.8,2.07905988]
[1748471162961,0.75681,2641.9,2641.8,2.07905988]
[1748471163862,0.75679,2642.0,2641.9,0.75678]
[1748471164162,0.75679,2642.0,2641.9,1.39438]
[1748471165759,2.20347,2642.1,2642.0,0.75678]
[1748471165962,2.20347,2642.1,2642.0,2.70868]
[1748471166153,0.87025,2642.1,2642.0,2.70868]
[1748471167861,2.20685,2642.1,2642.0,2.70868]
[1748471168261,0.75678,2642.0,2641.9,0.6376]
[1748471168564,2.09338,2642.0,2641.9,0.6376]
[1748471168763,2.09338,2642.0,2641.9,1.39441]
[1748471169558,0.87027,2642.1,2642.0,0.75678]
[1748471169863,0.87027,2642.1,2642.0,2.73768]
[1748471170260,2.14487,2642.1,2642.0,2.73768]
[1748471171666,2.14487,2642.1,2642.0,1.40698]
[1748471172471,2.14487,2642.1,2642.0,0.6502]
[1748471173668,0.75681,2641.9,2641.8,0.08286896]
[1748471173969,0.75681,2641.9,2641.8,0.83969896]
[1748471174371,2.05721,2641.9,2641.8,0.83969896]
[1748471179671,0.75681,2641.9,2641.8,0.83969896]
[1748471179873,4.0781,2642.0,2641.9,0.75681]
[1748471180068,4.0781,2642.0,2641.9,2.00501]
[1748471180373,4.0781,2642.0,2641.9,2.67041]
[1748471182567,0.1135,2642.0,2641.9,2.67041]
[1748471184272,0.87028,2642.0,2641.9,2.67041]
[1748471184576,0.1135,2642.0,2641.9,2.67041]
[1748471188380,0.75677,2642.1,2642.0,0.75678]
[1748471188581,0.75677,2642.1,2642.0,2.60958]
[1748471190976,0.75678,2642.0,2641.9,0.6654]
[1748471191183,0.75681,2641.9,2641.8,0.83967896]
[1748471191981,2.06061,2641.9,2641.8,0.83967896]
[1748471195579,2.06061,2641.9,2641.8,0.08286896]
[1748471197786,2.06061,2641.9,2640.2,0.37347555]
[1748471197787,0.75695,2641.4,2641.3,1.41978]
[1748471202687,4.45794,2641.5,2641.4,0.75695]
[1748471202890,4.45794,2641.5,2641.4,2.05185]
[1748471203088,4.45792,2641.5,2641.4,2.05185]
[1748471203686,5.67612,2641.5,2641.4,2.05185]
[1748471206794,4.45792,2641.5,2641.4,2.05185]
[1748471207099,3.701,2641.5,2641.4,2.05185]
[1748471207594,4.45792,2641.5,2641.4,2.05185]
[1748471207992,5.77612,2641.5,2641.4,2.05185]
[1748471209300,5.77612,2641.5,2641.4,2.12648908]
[1748471212496,5.77612,2641.5,2641.4,0.07463908]
[1748471212704,1.8925,2641.3,2640.7,0.75711]
[1748471213009,0.75715,2640.8,2640.7,0.75711]
[1748471213605,0.75715,2640.8,2640.7,2.06991]
[1748471213805,2.03841,2640.9,2640.8,0.75712]
[1748471214006,1.2813,2640.9,2640.8,0.75712]
[1748471214207,3.70467086,2641.0,2640.9,0.75709]
[1748471214405,4.46173086,2641.0,2640.9,0.75709]
[1748471214909,5.74303086,2641.0,2640.9,0.75709]
[1748471216105,3.70467086,2641.0,2640.9,0.75709]
[1748471216304,0.00567086,2641.0,2640.9,0.75709]
[1748471216599,1.35557086,2641.0,2640.9,0.75709]
[1748471216805,2.11263086,2641.0,2640.9,0.75709]
[1748471218507,0.76273086,2641.0,2640.9,0.75709]
[1748471218703,0.00567086,2641.0,2640.9,0.75709]
[1748471221614,5.10019,2641.4,2641.3,0.75698]
[1748471221615,3.2078,2641.4,2641.3,0.75698]
[1748471221914,3.699,2641.5,2641.4,0.75695]
[1748471221915,4.45592,2641.5,2641.4,0.75695]
[1748471222509,3.699,2641.5,2641.4,0.83158908]
[1748471222710,3.699,2641.5,2641.4,2.07448908]
[1748471226717,0.1135,2641.6,2641.5,0.75692]
[1748471226918,0.1135,2641.6,2641.5,2.08632]
[1748471231322,0.1135,2641.6,2641.5,5.29412]
[1748471231521,0.1135,2641.6,2641.5,10.29412]
[1748471231913,0.1135,2641.6,2641.5,5.29412]
[1748471232618,0.87039,2641.6,2641.5,5.29412]
[1748471232831,0.87039,2641.6,2641.5,2.08632]
[1748471233013,2.17349,2641.6,2641.5,2.08632]
[1748471233317,1.4166,2641.6,2641.5,2.08632]
[1748471233519,0.1135,2641.6,2641.5,2.08632]
[1748471238017,0.1135,2641.6,2641.5,5.29412]
[1748471239115,0.00567086,2641.7,2641.6,0.75689]
[1748471239328,0.00567086,2641.7,2641.6,2.00949]
[1748471249036,0.76253086,2641.7,2641.6,2.00949]
[1748471249232,0.76253086,2641.7,2641.6,0.75689]
[1748471249532,0.75689,2641.6,2641.5,0.83153908]
[1748471249731,1.2729,2641.6,2641.5,0.83153908]
[1748471251336,2.02979,2641.6,2641.5,0.83153908]
[1748471251635,5.23759,2641.6,2641.5,0.83153908]
[1748471251842,4.4807,2641.6,2641.5,0.83153908]
[1748471252528,5.23759,2641.6,2641.5,0.07463908]
[1748471252728,5.23759,2641.6,2641.5,0.83155908]
[1748471261142,4.4807,2641.6,2641.5,0.83155908]
[1748471261339,1.2729,2641.6,2641.5,0.83155908]
[1748471261541,2.02979,2641.6,2641.5,0.83155908]
[1748471261740,1.2729,2641.6,2641.5,1.49195908]
[1748471262132,1.2729,2641.6,2641.5,2.16375908]
[1748471263737,2.02979,2641.6,2641.5,2.16375908]
[1748471263935,1.2729,2641.6,2641.5,2.16375908]
[1748471265637,0.00567086,2641.7,2641.6,0.75689]
[1748471265843,0.00567086,2641.7,2641.6,2.07369]
[1748471267846,0.00567086,2641.7,2641.6,5.28149]
[1748471270139,0.00567086,2641.7,2641.6,5.35612908]
[1748471272436,1.3298,2642.4,2642.3,0.75669]
[1748471273748,3.97009086,2642.6,2642.5,0.75663]
[1748471273949,5.27509086,2642.6,2642.5,0.75663]
[1748471275340,5.27508086,2642.6,2642.5,0.75663]
[1748471278251,6.41001086,2642.6,2642.1,1.296]
[1748471278452,0.75672,2642.3,2642.2,0.75669]
[1748471278950,5.21678,2642.4,2642.3,0.75669]
[1748471279150,3.96448,2642.4,2642.3,0.75669]
[1748471279339,0.75686,2641.8,2641.7,0.75683]
[1748471279545,0.75683,2641.9,2641.8,0.7568]
[1748471281253,0.75686,2641.7,2641.6,0.07463908]
[1748471281751,5.75686,2641.7,2641.6,0.07463908]
[1748471283149,0.75686,2641.7,2641.6,0.07463908]
[1748471285150,5.75686,2641.7,2641.6,0.07463908]
[1748471287853,4.44986,2641.7,2641.6,0.83152908]
[1748471288055,4.44986,2641.7,2641.6,0.07463908]
[1748471291962,0.75686,2641.7,2641.6,0.07463908]
[1748471292660,2.06576,2641.7,2641.6,0.07463908]
[1748471296173,0.75698,2641.3,2641.2,0.00567086]
[1748471296374,7.65878,2641.3,2641.2,0.00567086]
[1748471296976,8.94338,2641.3,2641.2,0.00567086]
[1748471297870,13.94338,2641.3,2641.2,0.00567086]
[1748471298078,0.75715,2640.7,2640.6,2.07556]
[1748471299878,0.75714,2640.8,2640.7,0.75712]
[1748471300878,0.76278086,2640.9,2640.8,0.75712]
[1748471303381,0.75715,2640.8,2640.7,0.75713]
[1748471304284,0.00567086,2640.9,2640.8,0.75712]
[1748471304482,0.76276086,2640.9,2640.8,0.75712]
[1748471304680,0.00567086,2640.9,2640.8,0.75712]
[1748471304882,0.76276086,2640.9,2640.8,0.75712]
[1748471305184,0.00567086,2640.9,2640.8,0.75712]
[1748471305384,0.76276086,2640.9,2640.8,0.75712]
[1748471306682,0.00567086,2640.9,2640.8,0.75712]
[1748471307082,0.76276086,2640.9,2640.8,0.75712]
[1748471308786,0.75717,2640.7,2640.6,18.07615]
[1748471309087,0.75714,2640.8,2640.7,0.75712]
[1748471310186,0.76278086,2640.9,2640.8,0.75712]
[1748471310989,0.00567086,2640.9,2640.8,0.75712]
[1748471311681,0.76276086,2640.9,2640.8,0.75712]
[1748471313990,0.75718,2640.7,2640.6,0.75713]
[1748471315591,2.01034,2640.8,2640.7,0.75715]
[1748471315789,0.75714,2640.8,2640.7,0.75715]
[1748471315987,0.00567086,2640.9,2640.8,0.75712]
[1748471316795,0.00567086,2640.9,2640.8,0.83175908]
[1748471317194,0.76276086,2640.9,2640.8,0.83175908]
[1748471319186,0.00567086,2640.9,2640.8,0.83175908]
[1748471319883,0.76276086,2640.9,2640.8,0.83175908]
[1748471320495,0.00567086,2640.9,2640.8,0.83175908]
[1748471321693,0.76276086,2640.9,2640.8,0.83175908]
[1748471322197,0.76276086,2640.9,2640.8,0.07463908]
[1748471322395,0.76276086,2640.9,2640.8,0.83175908]
[1748471322590,0.76276086,2640.9,2640.8,1.46815908]
[1748471325099,0.76276086,2640.9,2640.8,3.42385908]
[1748471334710,0.00567086,2640.9,2640.8,3.42385908]
[1748471334900,0.00567086,2640.9,2640.8,6.63165908]
[1748471335809,0.00567086,2640.9,2640.8,3.42385908]
[1748471337205,0.00567086,2640.9,2640.8,6.63165908]
[1748471339603,0.00567086,2640.9,2640.8,20.74085908]
[1748471346007,0.00567086,2640.9,2640.8,3.42385908]
[1748471346214,4.45276086,2640.9,2640.8,0.07463908]
[1748471346416,7.03686086,2640.9,2640.8,0.07463908]
[1748471346614,1.89283,2640.8,2640.0,0.75734]
[1748471346911,3.2078,2640.5,2639.2,3.2078]
[1748471347114,0.75729,2640.3,2639.7,6.96599]
[1748471347307,6.2741,2640.4,2639.8,19.97779]
[1748471347503,6.2741,2640.4,2639.9,0.75738]
[1748471347707,0.75734,2640.1,2640.0,0.75735]
[1748471347911,0.75731,2640.2,2640.1,0.75732]
[1748471348309,4.9903,2640.4,2639.7,3.2078]
[1748471348509,3.2078,2639.8,2638.8,3.58583561]
[1748471348703,1.22943037,2640.3,2639.2,3.2078]
[1748471348704,3.69,2639.7,2639.2,3.2078]
[1748471348907,4.45312193,2639.7,2639.4,0.75751]
[1748471349415,0.1136,2639.6,2639.5,0.75749]
[1748471349614,0.1136,2639.6,2639.4,2.0017]
[1748471349818,0.1136,2639.6,2639.5,3.96529]
[1748471350309,0.1136,2639.6,2639.5,21.33129]
[1748471353412,0.1136,2639.6,2639.5,21.32529]
[1748471358619,0.69129947,2640.1,2640.0,0.75735]
[1748471362329,3.2078,2640.1,2639.8,0.61698193]
[1748471362524,0.75738,2639.9,2639.8,0.00568193]
[1748471363133,2.61508,2639.9,2639.8,0.00568193]
[1748471365731,1.2414,2639.9,2639.8,0.76309193]
[1748471366328,1.99878,2639.9,2639.8,0.76309193]
[1748471366628,1.99878,2639.9,2639.8,1.37339193]
[1748471366629,1.2414,2639.9,2639.8,1.37339193]
[1748471368331,1.99878,2639.9,2639.8,1.37339193]
[1748471368730,1.2414,2639.9,2639.8,1.37339193]
[1748471369325,1.99878,2639.9,2639.8,1.37339193]
[1748471374134,1.2414,2639.9,2639.8,1.37339193]
[1748471374530,1.99878,2639.9,2639.8,1.37339193]
[1748471375632,1.99878,2639.9,2639.8,1.44803101]
[1748471375829,1.2414,2639.9,2639.8,1.44803101]
[1748471376135,6.9148,2640.1,2640.0,0.75735]
[1748471376828,9.00144,2640.1,2640.0,0.75735]
[1748471380637,5.29444,2640.1,2640.0,0.75735]
[1748471381633,4.5371,2640.1,2640.0,0.75735]
[1748471381844,4.5371,2640.1,2640.0,1.98435]
[1748471382837,5.29442,2640.1,2640.0,1.98435]
[1748471383427,5.29442,2640.1,2640.0,1.227]
[1748471383627,5.29442,2640.1,2639.8,0.69062101]
[1748471383628,0.75738,2639.9,2639.8,0.69062101]
[1748471383839,0.75738,2639.9,2639.8,0.08032101]
[1748471384237,1.38918,2639.9,2639.8,0.08032101]
[1748471384637,1.38918,2639.9,2639.8,0.83773101]
[1748471386043,0.75738,2639.9,2639.8,0.83773101]
[1748471386540,2.02936,2640.0,2639.9,0.75738]
[1748471386939,1.272,2640.0,2639.9,0.75738]
[1748471387245,1.272,2640.0,2639.9,1.39828]
[1748471389538,2.02935,2640.0,2639.9,1.39828]
[1748471390341,1.272,2640.0,2639.9,1.39828]
[1748471390936,7.67214,2640.1,2640.0,0.75735]
[1748471391240,9.00764,2640.1,2640.0,2.01765]
[1748471394754,5.30062,2640.1,2640.0,2.01765]
[1748471395049,8.99162,2640.1,2640.0,2.01765]
[1748471395249,5.30062,2640.1,2640.0,2.68845]
[1748471395745,4.5433,2640.1,2640.0,2.68845]
[1748471396737,5.30062,2640.1,2640.0,2.68845]
[1748471400753,0.00568193,2640.3,2640.2,0.75729]
[1748471401143,1.24768193,2640.3,2640.2,0.75729]
[1748471401542,2.00494193,2640.3,2640.2,0.75729]
[1748471404952,0.76294193,2640.3,2640.2,0.75729]
[1748471406055,0.76294193,2640.3,2640.2,0.83192908]
[1748471407451,0.00568193,2640.3,2640.2,0.83192908]
[1748471408048,1.28408193,2640.3,2640.2,0.83192908]
[1748471408654,2.04134193,2640.3,2640.2,0.83192908]
[1748471409457,1.28408193,2640.3,2640.2,0.83192908]
[1748471409656,0.76294193,2640.3,2640.2,0.83192908]
[1748471410657,0.00568193,2640.3,2640.2,0.83192908]
[1748471411756,0.76294193,2640.3,2640.2,0.83192908]
[1748471411945,0.00568193,2640.3,2640.2,0.83192908]
[1748471412154,0.76294193,2640.3,2640.2,0.83192908]
[1748471412858,0.00568193,2640.3,2640.2,0.83192908]
[1748471413359,0.76294193,2640.3,2640.2,0.83192908]
[1748471413653,0.00568193,2640.3,2640.2,0.83192908]
[1748471421459,0.00568193,2640.3,2640.2,2.07342908]
[1748471423463,0.00568193,2640.3,2640.2,7.07342908]
[1748471424566,1.2477,2640.8,2640.7,0.75715]
[1748471425560,1.2477,2640.8,2640.7,2.61005]
[1748471431868,3.21348193,2641.0,2640.9,0.75709]
[1748471432168,0.00568193,2641.0,2640.9,0.75709]
[1748471433065,1.28538193,2641.0,2640.9,0.75709]
[1748471435469,1.28538193,2641.0,2640.9,0.83172908]
[1748471435864,1.89274,2640.9,2640.1,3.2078]
[1748471436165,0.75722,2640.5,2640.4,0.75721]
[1748471436560,3.32382,2640.5,2640.4,0.75721]
[1748471437464,2.5666,2640.5,2640.4,0.75721]
[1748471437671,1.9212,2640.5,2640.4,0.75721]
[1748471437871,1.2902,2640.5,2640.4,0.75721]
[1748471438571,1.2902,2640.5,2640.4,2.10251]
[1748471439877,2.04741,2640.5,2640.4,0.75721]
[1748471443479,1.2902,2640.5,2640.4,0.75721]
[1748471444789,2.04741,2640.5,2640.4,0.75721]
[1748471445085,1.2902,2640.5,2640.4,0.75721]
[1748471445286,1.9296,2640.5,2640.4,0.75721]
[1748471445790,4.9792,2640.5,2640.4,0.75721]
[1748471448179,1.2902,2640.5,2640.4,0.75721]
[1748471449691,1.2902,2640.5,2640.4,0.83184908]
[1748471452294,2.04741,2640.5,2640.4,0.83184908]
[1748471452596,1.2902,2640.5,2640.4,0.83184908]
[1748471453994,2.04741,2640.5,2640.4,1.49694908]
[1748471454189,2.04741,2640.5,2640.4,0.07463908]
[1748471454389,2.67831,2640.5,2640.4,0.07463908]
[1748471461701,2.67831,2640.5,2640.4,0.83186908]
[1748471461901,2.04741,2640.5,2640.4,0.83186908]
[1748471462102,3.965,2640.6,2640.5,0.75721]
[1748471462301,6.8948,2640.6,2640.5,0.75721]
[1748471462498,6.8948,2640.6,2640.5,2.64391]
[1748471462703,7.65198,2640.6,2640.5,2.64391]
[1748471462896,6.8948,2640.6,2640.5,2.64391]
[1748471464003,7.65198,2640.6,2640.5,2.64391]
[1748471465902,7.65198,2640.6,2640.5,2.71854908]
[1748471466704,7.65198,2640.6,2640.5,1.96133908]
[1748471466904,7.65198,2640.6,2640.5,0.07463908]
[1748471467104,1.89312,2640.4,2639.8,3.21348193]
[1748471467309,3.96518,2639.9,2639.8,0.00568193]
[1748471468603,5.29528,2639.9,2639.8,0.00568193]
[1748471475810,5.96778,2639.9,2639.8,0.00568193]
[1748471480113,5.96778,2639.9,2639.8,0.08032101]
[1748471484714,0.75749,2639.5,2639.4,1.3038]
[1748471485015,7.65329,2639.5,2639.4,1.3038]
[1748471485916,7.65329,2639.5,2639.4,2.06132]
[1748471486312,0.1136,2639.6,2639.5,0.75749]
[1748471486513,0.75749,2639.5,2639.4,1.3038]
[1748471486815,0.75749,2639.5,2639.4,2.06132]
[1748471487311,3.96529,2639.5,2639.4,2.06132]
[1748471487705,3.96529,2639.5,2639.4,1.3038]
[1748471488218,5.25109,2639.5,2639.4,1.3038]
[1748471489416,5.25109,2639.5,2639.4,2.06132]
[1748471489617,3.96529,2639.5,2639.4,2.06132]
[1748471489917,6.8948,2639.5,2639.4,2.06132]
[1748471490313,0.1136,2639.6,2639.5,0.75749]
[1748471490513,0.1136,2639.6,2639.5,1.98359]
[1748471494319,0.1136,2639.6,2639.5,2.05822908]
[1748471494716,0.87106,2639.6,2639.5,2.05822908]
[1748471496014,0.1136,2639.6,2639.5,2.05822908]
[1748471498720,0.87106,2639.6,2639.5,2.05822908]
[1748471499516,0.1136,2639.6,2639.5,2.05822908]
[1748471500220,0.1136,2639.6,2639.5,2.71442908]
[1748471502117,0.87106,2639.6,2639.5,2.71442908]
[1748471502624,0.1136,2639.6,2639.5,2.71442908]
[1748471505024,0.75746,2639.7,2639.6,0.75742]
[1748471505221,0.75746,2639.6,2639.5,0.73083908]
[1748471505422,3.31476,2639.6,2639.5,0.07463908]
[1748471515531,0.75755,2639.3,2639.2,0.00568193]
[1748471515833,7.65235,2639.3,2639.2,0.00568193]
[1748471520127,7.65235,2639.3,2639.2,0.76326193]
[1748471521627,0.00568193,2639.5,2639.2,0.00568193]
[1748471521830,1.3215,2640.2,2639.4,3.2078]
[1748471522131,3.685,2640.4,2640.3,0.75726]
[1748471522326,4.44225,2640.4,2640.3,0.75726]
[1748471523035,3.685,2640.4,2640.3,0.75726]
[1748471524031,4.44223,2640.4,2640.3,0.75726]
[1748471524533,3.685,2640.4,2640.3,0.75726]
[1748471525731,3.685,2640.4,2640.3,0.83189908]
[1748471525931,0.00568193,2640.6,2640.5,0.75721]
[1748471526137,3.69068193,2640.6,2640.5,0.75721]
[1748471526632,0.00568193,2640.6,2640.5,0.75721]
[1748471526835,3.685,2641.8,2640.7,1.89286]
[1748471527138,3.685,2641.7,2641.6,0.75689]
[1748471527434,0.75692,2641.5,2641.4,1.8639]
[1748471527734,4.44191,2641.6,2641.5,0.75689]
[1748471528432,3.685,2641.6,2641.5,1.98179]
[1748471528633,0.00568193,2641.7,2641.6,0.75689]
[1748471528828,3.68968193,2641.7,2641.6,3.96469]
[1748471531434,0.00568193,2641.7,2641.6,3.96469]
[1748471531638,3.683,2642.3,2642.2,0.75672]
[1748471531834,0.75662,2642.6,2642.5,0.75662]
[1748471532033,3.683,2642.6,2642.3,1.3107]
[1748471532229,0.75665,2642.5,2642.4,0.75664]
[1748471533234,0.75666,2642.4,2642.3,2.06738]
[1748471534451,0.75666,2642.4,2642.3,1.3107]
[1748471538646,0.75666,2642.4,2642.3,2.06739]
[1748471539347,0.75666,2642.4,2642.3,1.3107]
[1748471540136,0.75683,2641.8,2641.7,3.2078]
[1748471540342,0.75692,2641.6,2641.5,0.75689]
[1748471540540,0.75692,2641.6,2641.5,2.07529]
[1748471541048,0.75692,2641.6,2641.5,1.3184]
[1748471542750,0.75692,2641.6,2641.5,2.07532]
[1748471543945,0.75692,2641.6,2641.5,1.3184]
[1748471545259,6.82472,2641.8,2641.4,3.2078]
[1748471545260,0.75692,2641.5,2641.4,3.2078]
[1748471545455,1.89226,2641.6,2641.2,0.00568193]
[1748471545654,0.75698,2641.3,2641.2,0.00568193]
[1748471545965,0.75723,2640.5,2640.4,0.75722]
[1748471546356,0.75723,2640.4,2640.3,2.05014]
[1748471546857,0.75723,2640.5,2640.4,0.75722]
[1748471547356,0.00568193,2640.6,2640.5,0.75721]
[1748471547562,0.00568193,2640.6,2640.5,3.96501]
[1748471548357,0.00568193,2640.6,2640.5,8.96501]
[1748471549766,0.00568193,2640.6,2640.5,26.31801]
[1748471549955,0.75704,2641.1,2641.0,0.75706]
[1748471550666,0.75704,2641.1,2641.0,2.63836]
[1748471551759,0.00568193,2641.3,2641.0,3.77395]
[1748471551958,4.47567193,2641.3,2641.2,0.75701]
[1748471553563,4.47567193,2641.3,2641.2,2.04081]
[1748471555269,0.76267193,2641.3,2641.2,2.11544908]
[1748471555657,0.00568193,2641.3,2641.2,2.11544908]
[1748471556771,0.00568193,2641.3,2641.2,19.46544908]
[1748471558265,3.713,2642.0,2641.8,0.75683]
[1748471558463,3.713,2642.0,2641.9,1.9232]
[1748471559566,4.46978,2642.0,2641.9,1.9232]
[1748471560066,4.46978,2642.0,2641.9,2.68]
[1748471560672,4.46978,2642.0,2641.9,1.9232]
[1748471560868,4.46978,2642.0,2641.9,2.68]
[1748471561672,4.46977,2642.1,2642.0,0.75675]